bitfinex-derivatives/quotes_SOLF0:USTF0_20250703
["timestamp","ask_amount","ask_price","bid_price","bid_amount"]
[1751504273652,3.76511299,152.92,152.86,3.76511299]
[1751504273844,3.88564101,152.95,152.86,54.93940839]
[1751504274049,3.88564101,152.95,152.88,3.76511299]
[1751504274250,3.88564101,152.95,152.88,9.83940839]
[1751504275651,3.88564101,152.95,152.9,3.76511299]
[1751504276054,6.5356,152.95,152.9,3.76511299]
[1751504276554,6.5356,152.95,152.9,9.84125368]
[1751504277453,6.5356,152.95,152.9,3.76511299]
[1751504277650,6.5356,152.95,152.92,6.5364]
[1751504279553,6.5358,152.94,152.91,6.5369]
[1751504281556,6.5363,152.93,152.9,3.76511299]
[1751504281757,83.46833849,152.97,152.9,3.76511299]
[1751504282054,6.5361,152.94,152.9,10.30221299]
[1751504282758,6.5363,152.93,152.9,10.30221299]
[1751504284456,83.46833849,152.97,152.91,6.537]
[1751504284457,6.5359,152.94,152.91,6.537]
[1751504284958,6.5359,152.94,152.9,10.30241299]
[1751504286061,6.5362,152.93,152.9,6.5373]
[1751504286258,6.5362,152.93,152.9,10.30241299]
[1751504286560,83.46833849,152.97,152.9,10.30241299]
[1751504286859,6.5361,152.94,152.9,10.30241299]
[1751504287363,6.5361,152.94,152.91,6.5371]
[1751504288363,6.5361,152.94,152.9,10.30241299]
[1751504292271,6.5361,152.94,152.91,6.5371]
[1751504292463,6.5355,152.95,152.9,3.76511299]
[1751504293576,6.5355,152.95,152.92,6.5364]
[1751504294374,3.76511299,152.99,152.92,3.76511299]
[1751504294569,7.74147026,152.99,152.92,3.76511299]
[1751504295371,3.76511299,152.99,152.92,3.76511299]
[1751504295570,6.5347,152.97,152.94,6.5358]
[1751504296568,6.5343,152.98,152.95,6.5354]
[1751504297374,6.5345,152.97,152.95,6.5354]
[1751504297875,3.76511299,152.99,152.95,6.5354]
[1751504298074,6.5344,152.98,152.95,6.5354]
[1751504299175,6.5345,152.97,152.94,6.5357]
[1751504299976,6.5343,152.98,152.95,6.5353]
[1751504302577,6.5346,152.97,152.94,6.5357]
[1751504303478,3.76511299,152.99,152.92,3.76511299]
[1751504303879,6.5348,152.97,152.94,8.94198903]
[1751504307380,6.5342,152.98,152.95,8.94158903]
[1751504307582,6.10283488,153.05,152.97,2.40426187]
[1751504307780,2.40426187,153.05,153.0,2.40426187]
[1751504307983,2.40426187,153.03,152.99,2.40426187]
[1751504308184,2.40426187,153.02,152.98,2.40426187]
[1751504308385,8.93636187,153.03,152.99,8.93756187]
[1751504309086,6.5325,153.02,152.99,2.40426187]
[1751504309882,6.5325,153.02,152.98,6.5339]
[1751504310185,6.5325,153.02,152.99,6.5337]
[1751504311091,6.5328,153.01,152.98,6.5338]
[1751504316388,6.5326,153.02,152.99,6.5336]
[1751504317488,3.75752356,153.03,152.97,45.04]
[1751504318091,2.2521,153.04,152.97,51.5742]
[1751504318294,3.75752356,153.02,152.97,51.5742]
[1751504318985,6.5333,153.0,152.97,51.5742]
[1751504321693,6.5338,152.99,152.97,51.5742]
[1751504322491,6.5334,153.0,152.97,51.5742]
[1751504326095,6.5337,152.99,152.97,51.5742]
[1751504327596,6.5333,153.0,152.97,51.5742]
[1751504329197,6.5329,153.01,152.98,6.534]
[1751504329894,6.5329,153.01,152.99,2.40485542]
[1751504331098,2.40485542,153.06,153.0,2.40485542]
[1751504331299,2.40485542,153.06,152.97,51.11614069]
[1751504331300,2.40485542,153.05,153.01,2.40485542]
[1751504331494,6.10283488,153.1,153.04,2.40258409]
[1751504331803,6.10283488,153.1,153.0,189.3]
[1751504331804,2.40258409,153.11,153.07,2.40258409]
[1751504332799,6.5292,153.1,153.07,8.93278409]
[1751504332998,2.40258409,153.11,153.07,2.40258409]
[1751504333502,8.93178409,153.1,153.07,8.93268409]
[1751504333702,2.40258409,153.1,153.07,2.40258409]
[1751504334003,3.75387303,153.12,153.05,3.75387303]
[1751504334194,3.75387303,153.12,153.03,47.2739]
[1751504334195,3.75387303,153.12,153.04,3.75387303]
[1751504334801,3.75387303,153.1,153.04,3.75387303]
[1751504335001,3.75387303,153.1,153.03,51.02777303]
[1751504335498,6.5304,153.07,153.04,6.5313]
[1751504335802,3.75387303,153.08,153.03,45.0]
[1751504336703,6.5309,153.06,153.03,51.5319]
[1751504337697,6.5312,153.05,153.03,51.5319]
[1751504338103,6.5312,153.05,153.03,45.0]
[1751504340904,2.1396,153.11,153.03,45.0]
[1751504341113,3.75387303,153.11,153.04,3.75387303]
[1751504341609,6.5296,153.09,153.06,6.5303]
[1751504341806,3.75387303,153.1,153.03,50.90747303]
[1751504342008,6.5301,153.08,153.05,6.5311]
[1751504346615,6.5296,153.09,153.05,6.5311]
[1751504347413,6.5299,153.08,153.05,6.5311]
[1751504348716,3.75387303,153.12,153.06,6.5306]
[1751504348717,6.5295,153.09,153.06,6.5306]
[1751504349717,6.5292,153.1,153.05,3.75387303]
[1751504349917,3.75387303,153.12,153.05,3.75387303]
[1751504351018,6.5296,153.09,153.06,6.5304]
[1751504351318,3.75387303,153.12,153.05,3.75387303]
[1751504351520,6.5294,153.1,153.07,6.5298]
[1751504351720,3.75387303,153.12,153.05,3.75387303]
[1751504352611,6.5301,153.08,153.05,10.28477303]
[1751504353020,46.13697623,153.15,153.05,3.75387303]
[1751504353317,3.75387303,153.12,153.06,6.5305]
[1751504353817,6.5301,153.08,153.05,10.28477303]
[1751504356721,6.5295,153.09,153.06,6.5306]
[1751504358420,6.5299,153.08,153.06,6.5306]
[1751504359520,6.5299,153.08,153.05,10.28477303]
[1751504365126,3.75387303,153.13,153.05,3.75387303]
[1751504366430,6.529,153.1,153.07,6.53]
[1751504367332,6.5287,153.11,153.08,6.5298]
[1751504369132,6.5283,153.12,153.09,6.5294]
[1751504370426,6.5279,153.13,153.09,3.75387303]
[1751504371131,6.5279,153.13,153.1,6.5287]
[1751504371427,6.5274,153.14,153.09,3.75387303]
[1751504372136,6.5274,153.14,153.11,6.5283]
[1751504372624,6.5278,153.13,153.09,3.75387303]
[1751504372829,6.5278,153.13,153.1,6.5288]
[1751504374935,3.75387303,153.13,153.08,44.94]
[1751504376531,6.5293,153.1,153.08,44.94]
[1751504378942,6.5294,153.09,153.08,44.94]
[1751504380137,6.5299,153.08,153.05,61.28091372]
[1751504380337,6.5299,153.08,153.05,55.20477303]
[1751504381439,6.5299,153.08,153.06,6.5307]
[1751504382135,4.23722154,153.13,153.07,10.28377303]
[1751504382343,4.23722154,153.12,153.07,3.75387303]
[1751504382542,4.23722154,153.13,153.07,3.75387303]
[1751504382742,6.5288,153.11,153.08,6.5297]
[1751504385336,6.10283488,153.17,153.05,54.75001372]
[1751504385337,3.75387303,153.12,153.05,54.75001372]
[1751504386331,6.5296,153.09,153.06,6.5306]
[1751504386535,6.5296,153.09,153.05,54.75001372]
[1751504387142,6.5296,153.09,153.06,6.5304]
[1751504387939,6.5292,153.1,153.06,6.5304]
[1751504388144,6.5292,153.1,153.07,6.5302]
[1751504400253,6.5294,153.09,153.07,6.5302]
[1751504400456,3.75387303,153.12,153.05,54.75001372]
[1751504400656,3.75387303,153.1,153.05,50.99614069]
[1751504400956,6.53,153.08,153.05,44.92]
[1751504401254,6.53,153.08,153.05,50.99614069]
[1751504401448,6.53,153.08,153.05,57.52694069]
[1751504401647,6.5295,153.09,153.05,44.92]
[1751504401852,6.5295,153.09,153.05,50.99614069]
[1751504402257,6.5298,153.08,153.05,57.52704069]
[1751504403054,6.5297,153.09,153.06,6.5306]
[1751504403455,6.5297,153.09,153.05,50.99614069]
[1751504403456,6.5299,153.08,153.05,57.52704069]
[1751504403754,3.75387303,153.12,153.05,50.99614069]
[1751504403956,6.5297,153.09,153.06,6.5306]
[1751504404157,6.01127303,153.14,153.05,54.75001372]
[1751504404356,6.01127303,153.14,153.06,6.07614069]
[1751504404557,6.5292,153.1,153.07,6.5301]
[1751504404751,3.75387303,153.12,153.06,6.07614069]
[1751504404950,3.75387303,153.12,153.05,50.99614069]
[1751504405862,6.5297,153.09,153.06,6.5307]
[1751504406062,3.75387303,153.12,153.05,50.99614069]
[1751504406360,6.529,153.1,153.06,6.5304]
[1751504406554,3.75387303,153.12,153.06,6.5304]
[1751504407162,6.5294,153.1,153.06,12.60654069]
[1751504407764,6.5295,153.09,153.06,12.60654069]
[1751504408264,3.75387303,153.12,153.06,6.07614069]
[1751504408466,3.75387303,153.1,153.06,6.07614069]
[1751504408660,3.75387303,153.08,153.05,44.92]
[1751504408859,6.5307,153.06,153.05,44.92]
[1751504409164,3.75387303,153.08,153.02,6.07614069]
[1751504410065,6.5315,153.05,153.02,6.07614069]
[1751504410465,6.5315,153.05,153.01,612.99387303]
[1751504410466,3.75387303,153.1,153.03,9.83001372]
[1751504410667,6.5306,153.07,153.04,6.5313]
[1751504411067,10.79021802,153.07,153.04,6.5313]
[1751504411267,6.5306,153.07,153.04,6.5313]
[1751504411561,6.5307,153.06,153.03,10.28567303]
[1751504412568,6.5311,153.05,153.02,12.60824069]
[1751504416469,6.5311,153.05,153.02,6.07614069]
[1751504416969,6.5311,153.05,153.01,250.34261372]
[1751504417364,6.5311,153.05,153.02,6.5322]
[1751504418472,6.5308,153.06,153.03,6.5319]
[1751504419173,6.5311,153.05,153.02,12.60834069]
[1751504420168,6.5311,153.05,153.02,6.5322]
[1751504420879,6.5316,153.04,153.01,250.34261372]
[1751504421073,6.5316,153.04,153.01,246.58874069]
[1751504421273,3.75387303,153.06,153.01,240.05614069]
[1751504421676,6.5318,153.04,153.01,246.58894069]
[1751504422582,6.5318,153.04,153.01,57.50894069]
[1751504422975,6.5318,153.04,153.01,57.55032321]
[1751504423380,6.10283488,153.11,153.03,6.5319]
[1751504423577,3.75387303,153.08,153.03,6.5319]
[1751504423983,3.75387303,153.08,153.02,6.5324]
[1751504424181,3.75387303,153.08,153.01,50.97614069]
[1751504424377,3.75387303,153.06,153.01,50.97614069]
[1751504424583,6.5318,153.04,153.01,57.50874069]
[1751504425486,6.5318,153.04,153.01,51.4326]
[1751504427284,6.532,153.03,153.01,44.9]
[1751504427487,3.75387303,153.06,153.01,44.9]
[1751504428890,6.5324,153.02,153.01,44.9]
[1751504429280,3.75387303,153.04,152.99,6.07614069]
[1751504430090,6.5332,153.01,152.98,57.53014069]
[1751504430487,6.5327,153.02,152.99,6.5335]
[1751504430786,3.75387303,153.06,152.98,54.75001372]
[1751504430989,6.5322,153.03,153.0,6.5332]
[1751504433386,6.5317,153.04,152.99,6.07614069]
[1751504433598,3.75387303,153.08,153.0,9.83001372]
[1751504434197,6.5316,153.04,153.01,6.5325]
[1751504434901,3.75387303,153.08,153.0,9.83001372]
[1751504434902,6.5313,153.05,153.02,6.5324]
[1751504438597,6.5316,153.04,153.01,6.5326]
[1751504439501,6.5313,153.05,153.02,6.5323]
[1751504439700,3.75387303,153.08,153.0,6.07614069]
[1751504439996,6.5317,153.04,153.0,6.07614069]
[1751504440201,6.5317,153.04,153.01,6.5326]
[1751504442000,6.5314,153.05,153.02,6.5324]
[1751504443702,6.5314,153.05,153.02,6.57371743]
[1751504443902,6.5316,153.04,153.02,0.04131743]
[1751504445208,6.5316,153.04,153.02,6.57371743]
[1751504445608,6.5316,153.04,153.02,0.04131743]
[1751504445807,6.532,153.03,153.02,0.04131743]
[1751504453013,6.5317,153.04,153.02,0.04131743]
[1751504453212,3.75387303,153.06,153.02,0.04131743]
[1751504453514,6.5314,153.05,153.02,12.64508565]
[1751504456114,3.75387303,153.06,153.02,6.11308565]
[1751504456313,3.75387303,153.06,153.02,0.04131743]
[1751504456716,6.532,153.03,153.02,0.04131743]
[1751504459514,8.93652883,153.03,153.02,0.04131743]
[1751504459909,6.532,153.03,153.02,0.04131743]
[1751504462519,6.533,153.01,152.99,50.99983309]
[1751504462715,4.16284388,153.02,152.99,50.99983309]
[1751504462919,3.75754512,153.05,153.0,6.07983309]
[1751504463110,6.532,153.03,153.01,6.07983309]
[1751504464522,4.16284388,153.04,153.02,6.07983309]
[1751504464820,0.04132803,153.04,153.02,6.07983309]
[1751504465016,0.04132803,153.04,153.02,12.61193309]
[1751504467314,0.04132803,153.04,153.02,12.61178943]
[1751504467821,0.04132803,153.04,153.02,6.07968943]
[1751504468221,0.04132803,153.04,153.02,12.61178943]
[1751504472325,6.57292803,153.04,153.02,12.61178943]
[1751504473027,0.04132803,153.04,153.02,12.61178943]
[1751504474028,6.57292803,153.04,153.02,12.61178943]
[1751504474730,6.57292803,153.04,153.02,6.07968943]
[1751504474925,6.532,153.03,153.01,50.97968943]
[1751504476832,6.5324,153.02,153.01,50.97968943]
[1751504482329,6.5324,153.02,153.01,44.9]
[1751504484232,6.5324,153.02,153.0,12.61288943]
[1751504486435,6.5324,153.02,153.0,6.07968943]
[1751504488240,2.4046863,153.01,152.99,6.07968943]
[1751504488438,2.4046863,153.0,152.98,6.07968943]
[1751504488637,2.4046863,152.99,152.97,6.07968943]
[1751504488937,8.9387863,152.98,152.97,6.07968943]
[1751504489132,8.9387863,152.98,152.96,59.46349038]
[1751504489133,6.5341,152.98,152.96,59.46349038]
[1751504489336,8.9385863,152.99,152.97,12.61675437]
[1751504489529,2.4046863,153.0,152.97,12.61675437]
[1751504489735,3.75816158,153.03,152.98,6.08235437]
[1751504490038,6.5331,153.01,152.98,12.61625437]
[1751504491941,6.5333,153.0,152.98,6.08235437]
[1751504492633,6.5337,152.99,152.98,6.08235437]
[1751504492839,3.75816158,152.99,152.96,50.98235437]
[1751504493139,3.75816158,152.99,152.96,44.9]
[1751504493334,6.5345,152.97,152.96,44.9]
[1751504495438,6.5342,152.98,152.96,44.9]
[1751504497540,6.5345,152.97,152.96,44.9]
[1751504501245,3.75816158,152.97,152.92,6.08235437]
[1751504501633,6.5359,152.94,152.92,6.08235437]
[1751504502844,6.5362,152.93,152.91,50.98235437]
[1751504503046,6.5362,152.93,152.91,44.9]
[1751504503242,6.5367,152.92,152.91,44.9]
[1751504504449,6.5375,152.9,152.87,50.98235437]
[1751504504847,6.5375,152.9,152.87,51.4385]
[1751504505446,6.5373,152.91,152.87,51.4385]
[1751504505648,6.5373,152.91,152.88,6.5382]
[1751504505850,3.75816158,152.93,152.87,44.9]
[1751504507055,6.5373,152.91,152.88,6.5381]
[1751504507353,3.75816158,152.93,152.88,6.5381]
[1751504508560,6.5369,152.92,152.88,6.5381]
[1751504509246,6.5373,152.91,152.88,6.5381]
[1751504509446,3.75816158,152.93,152.87,44.9]
[1751504510148,6.5372,152.91,152.88,6.5381]
[1751504515051,3.75816158,152.93,152.87,44.9]
[1751504516552,6.5372,152.91,152.88,6.5383]
[1751504521957,6.5364,152.93,152.9,6.5375]
[1751504522849,3.75816158,152.95,152.91,6.537]
[1751504523056,0.04134183,152.93,152.91,6.537]
[1751504525556,0.04134183,152.93,152.89,6.9334]
[1751504525557,0.04134183,152.93,152.92,6.5367]
[1751504525964,0.04134183,152.93,152.9,3.75816158]
[1751504526457,0.04134183,152.93,152.92,6.5367]
[1751504526960,0.04134183,152.93,152.92,10.29486158]
[1751504527656,0.04134183,152.93,152.92,6.5367]
[1751504528457,0.04134183,152.93,152.91,6.5369]
[1751504528963,0.04134183,152.93,152.9,10.29546158]
[1751504529262,0.04134183,152.93,152.89,6.9334]
[1751504529456,0.04134183,152.93,152.88,44.92]
[1751504530263,6.5376,152.9,152.88,44.92]
[1751504531364,6.5379,152.89,152.88,44.92]
[1751504531664,3.75816158,152.92,152.88,44.92]
[1751504532262,6.5377,152.9,152.88,44.92]
[1751504532463,3.75816158,152.9,152.88,44.92]
[1751504532863,6.5383,152.89,152.86,6.5391]
[1751504533560,6.5383,152.89,152.85,6.5395]
[1751504534259,6.58323946,152.89,152.85,6.5395]
[1751504536471,6.58323946,152.89,152.86,6.5391]
[1751504538964,6.5385,152.88,152.85,6.5395]
[1751504542479,6.5385,152.88,152.84,51.4399]
[1751504542779,3.75816158,152.88,152.84,44.9]
[1751504543380,6.5391,152.87,152.84,44.9]
[1751504543678,3.75816158,152.86,152.84,44.9]
[1751504544080,3.75816158,152.88,152.83,44.9]
[1751504544280,0.04493946,152.89,152.83,44.9]
[1751504544480,3.75816158,152.88,152.83,44.9]
[1751504545875,6.5397,152.85,152.83,44.9]
[1751504546580,6.5401,152.84,152.83,44.9]
[1751504547873,6.5401,152.84,152.81,12.62345437]
[1751504548074,6.5406,152.83,152.81,12.62345437]
[1751504548276,0.04167698,152.85,152.81,12.62345437]
[1751504548473,0.04167698,152.85,152.81,6.08235437]
[1751504548681,3.75816158,152.84,152.77,50.98235437]
[1751504548882,3.75816158,152.82,152.77,50.98235437]
[1751504549275,6.5418,152.8,152.77,50.98235437]
[1751504549472,3.75816158,152.82,152.77,50.98235437]
[1751504549681,6.5415,152.81,152.78,6.5424]
[1751504550078,6.58384593,152.81,152.78,6.5424]
[1751504551185,6.5418,152.8,152.77,51.4427]
[1751504554080,0.04234593,152.81,152.75,9.84051595]
[1751504554387,3.75816158,152.8,152.74,240.8832]
[1751504554977,3.75816158,152.8,152.74,51.7232]
[1751504555290,6.5425,152.79,152.74,51.7232]
[1751504555678,3.75816158,152.8,152.74,51.7232]
[1751504557189,6.5429,152.78,152.74,58.2671]
[1751504557588,6.5429,152.78,152.74,51.7232]
[1751504557790,6.5429,152.78,152.75,6.5437]
[1751504557986,6.58917409,152.78,152.75,6.5437]
[1751504558587,6.543,152.77,152.74,58.2673]
[1751504559483,0.04627409,152.78,152.74,44.92]
[1751504559484,3.80443567,152.78,152.74,44.92]
[1751504559683,3.75816158,152.76,152.7,44.92]
[1751504560495,6.5451,152.72,152.7,44.92]
[1751504560693,3.75816158,152.72,152.66,6.08235437]
[1751504560992,6.5458,152.71,152.65,234.16]
[1751504561186,3.75816158,152.72,152.65,44.92]
[1751504561390,6.5462,152.7,152.67,6.5472]
[1751504561791,0.04145979,152.71,152.65,234.16]
[1751504562096,10.30436158,152.7,152.67,6.5469]
[1751504563194,3.75816158,152.7,152.65,44.92]
[1751504563595,10.30446158,152.7,152.67,6.5469]
[1751504564601,3.75816158,152.7,152.65,44.92]
[1751504565293,10.30416158,152.7,152.67,6.547]
[1751504567497,10.30416158,152.7,152.65,44.92]
[1751504568798,6.5464,152.69,152.65,44.92]
[1751504569303,6.5464,152.69,152.66,6.5475]
[1751504569500,3.75816158,152.7,152.65,44.92]
[1751504570196,6.5466,152.69,152.66,6.5477]
[1751504570401,3.75816158,152.7,152.65,44.92]
[1751504571303,6.5466,152.69,152.66,6.5476]
[1751504573406,10.30436158,152.7,152.67,6.5472]
[1751504573810,3.75816158,152.7,152.67,6.5472]
[1751504574004,6.5464,152.69,152.66,6.5476]
[1751504574907,6.5469,152.68,152.65,51.468]
[1751504575298,6.5469,152.68,152.65,44.92]
[1751504575605,6.5469,152.68,152.65,51.4679]
[1751504576504,6.5466,152.69,152.66,6.5477]
[1751504578310,3.75816158,152.68,152.65,44.92]
[1751504579510,6.5476,152.67,152.65,44.92]
[1751504580009,6.5476,152.67,152.64,6.5485]
[1751504580209,6.5478,152.66,152.63,6.5488]
[1751504580905,6.59112751,152.66,152.63,6.5488]
[1751504581100,6.59112751,152.66,152.64,6.5485]
[1751504581509,0.04332751,152.66,152.64,6.5485]
[1751504582310,6.59102751,152.66,152.63,6.5488]
[1751504583013,0.04332751,152.66,152.64,6.5483]
[1751504585011,0.04332751,152.66,152.61,234.3]
[1751504585212,0.04332751,152.66,152.61,238.05816158]
[1751504585413,0.04332751,152.66,152.61,48.71816158]
[1751504585714,6.5483,152.65,152.61,44.96]
[1751504586110,10.34918909,152.66,152.63,6.5485]
[1751504586912,10.34918909,152.66,152.6,841.81948839]
[1751504586913,3.80148909,152.66,152.6,7.0039]
[1751504587116,3.75816158,152.64,152.59,44.96]
[1751504587614,6.5499,152.61,152.59,44.96]
[1751504587814,3.75816158,152.64,152.59,44.96]
[1751504588214,0.04463457,152.63,152.59,44.96]
[1751504589116,0.04463457,152.63,152.55,4.5517]
[1751504589117,3.75816158,152.6,152.55,4.5517]
[1751504589308,6.5511,152.58,152.55,11.1037]
[1751504589508,3.75816158,152.6,152.55,4.5517]
[1751504589707,3.75816158,152.58,152.53,236.4618]
[1751504589914,3.80363745,152.58,152.53,47.1018]
[1751504590117,3.80363745,152.58,152.53,236.4618]
[1751504590617,6.5517,152.57,152.54,6.5525]
[1751504590816,0.04547587,152.58,152.53,236.4618]
[1751504591012,0.04547587,152.58,152.54,3.75816158]
[1751504591217,3.75816158,152.57,152.51,53.8412]
[1751504591419,3.75816158,152.57,152.51,47.2875]
[1751504591613,6.5536,152.53,152.51,47.2875]
[1751504591815,3.75816158,152.55,152.5,2.36]
[1751504592117,3.75816158,152.55,152.49,2.1418]
[1751504592316,6.5542,152.51,152.47,45.06]
[1751504592515,6.5542,152.51,152.47,234.7]
[1751504592821,3.75816158,152.57,152.51,6.554]
[1751504593119,44.98,152.61,152.5,3.75816158]
[1751504593322,3.75816158,152.59,152.51,198.05146158]
[1751504593910,6.60006159,152.57,152.53,6.5531]
[1751504594114,0.04846159,152.57,152.53,3.75816158]
[1751504594314,0.04846159,152.57,152.55,3.75816158]
[1751504595012,45.06,152.65,152.6,6.5502]
[1751504595218,45.06,152.65,152.59,3.75816158]
[1751504595721,6.5486,152.64,152.6,6.5498]
[1751504596813,6.5486,152.64,152.6,6.59185701]
[1751504599819,6.5486,152.64,152.61,6.5498]
[1751504600525,6.5486,152.64,152.6,6.59205701]
[1751504600825,6.5486,152.64,152.6,0.04205701]
[1751504601426,6.5486,152.64,152.6,6.59215701]
[1751504602125,6.5482,152.65,152.61,6.5498]
[1751504602326,3.75816158,152.66,152.6,0.04205701]
[1751504602726,3.75816158,152.66,152.6,6.59195701]
[1751504603326,6.5488,152.64,152.6,6.59195701]
[1751504605728,6.5482,152.65,152.6,0.04205701]
[1751504605928,3.75816158,152.66,152.6,0.04205701]
[1751504606231,6.5483,152.65,152.6,0.04205701]
[1751504607431,6.5485,152.64,152.61,6.5496]
[1751504607629,3.75816158,152.66,152.61,6.5496]
[1751504608230,6.5482,152.65,152.61,6.5496]
[1751504608737,6.5473,152.67,152.61,3.75816158]
[1751504609136,49.6712,152.71,152.62,45.06]
[1751504609335,6.547,152.68,152.63,3.75816158]
[1751504609730,6.547,152.68,152.64,6.5482]
[1751504610436,6.547,152.68,152.64,6.59378444]
[1751504610835,3.75816158,152.7,152.64,0.04558444]
[1751504612538,6.547,152.68,152.65,6.5478]
[1751504612837,6.547,152.68,152.64,0.04558444]
[1751504613034,3.75816158,152.7,152.64,6.59398444]
[1751504614033,6.547,152.68,152.64,6.59398444]
[1751504615540,6.5473,152.67,152.64,6.59398444]
[1751504615745,3.75816158,152.7,152.64,0.04558444]
[1751504616141,3.75816158,152.68,152.64,0.04558444]
[1751504617137,6.5479,152.66,152.64,0.04558444]
[1751504617537,6.5481,152.65,152.64,0.04558444]
[1751504618143,3.75816158,152.66,152.58,47.4121]
[1751504618344,3.75816158,152.63,152.58,47.4121]
[1751504618842,6.5498,152.61,152.58,53.9629]
[1751504619345,0.04713329,152.61,152.59,6.5506]
[1751504620545,0.04713329,152.61,152.6,6.5502]
[1751504621244,3.75816158,152.69,152.63,6.5489]
[1751504621553,3.75816158,152.69,152.62,3.75816158]
[1751504622748,6.5474,152.67,152.64,0.04591298]
[1751504624850,6.5474,152.67,152.64,6.59441298]
[1751504628350,6.5469,152.68,152.65,6.548]
[1751504628650,3.75816158,152.7,152.64,3.80407456]
[1751504628850,6.5468,152.68,152.65,6.5478]
[1751504629854,6.5465,152.69,152.66,6.5476]
[1751504630651,6.5468,152.68,152.65,6.5479]
[1751504634752,6.5468,152.68,152.65,6.5476]
[1751504635046,3.75816158,152.67,152.64,0.04591298]
[1751504635352,6.5481,152.65,152.64,0.04591298]
[1751504653858,3.98500853,152.68,152.64,0.04591298]
[1751504654159,3.98500853,152.68,152.64,6.12926689]
[1751504654359,6.5476,152.67,152.64,12.67756689]
[1751504654558,3.98500853,152.69,152.64,6.12926689]
[1751504654750,3.98500853,152.69,152.65,6.08335391]
[1751504654951,7.74317011,152.7,152.65,6.08335391]
[1751504655855,3.98500853,152.69,152.64,6.12926689]
[1751504656360,6.5476,152.67,152.64,6.12926689]
[1751504657262,6.5477,152.66,152.64,6.12926689]
[1751504661968,6.5477,152.66,152.64,12.67776689]
[1751504662566,6.5474,152.67,152.64,12.67776689]
[1751504662761,6.5474,152.67,152.65,6.08335391]
[1751504664875,6.5474,152.67,152.65,12.63135391]
[1751504665373,6.5469,152.68,152.65,12.63135391]
[1751504665875,3.98500853,152.69,152.65,12.63135391]
[1751504666068,6.5471,152.68,152.65,12.63135391]
[1751504666373,3.98500853,152.69,152.66,6.08335391]
[1751504666670,3.98500853,152.71,152.67,6.08335391]
[1751504666871,6.5464,152.69,152.67,6.08335391]
[1751504668368,6.5464,152.69,152.66,16.43517815]
[1751504668573,6.5461,152.7,152.67,6.5471]
[1751504671477,3.98500853,152.72,152.68,6.5466]
[1751504671677,3.98500853,152.72,152.68,3.75816158]
[1751504672381,10.53030853,152.72,152.69,6.5461]
[1751504672877,6.5459,152.7,152.67,61.48861549]
[1751504673277,3.98500853,152.72,152.67,54.94151549]
[1751504675077,6.5453,152.72,152.69,6.546]
[1751504675379,6.5453,152.72,152.69,10.30416158]
[1751504675678,118.70605635,152.73,152.69,3.75816158]
[1751504675973,3.75816158,152.76,152.69,3.75816158]
[1751504676174,4.03623261,152.77,152.73,3.75816158]
[1751504676382,3.75816158,152.79,152.73,3.75816158]
[1751504676572,3.75816158,152.79,152.72,51.16335391]
[1751504676878,3.75816158,152.79,152.73,0.04181221]
[1751504677778,6.544,152.75,152.73,0.04181221]
[1751504678479,6.5442,152.74,152.73,0.04181221]
[1751504678878,3.75816158,152.79,152.73,0.04181221]
[1751504679781,6.5437,152.76,152.73,6.58641221]
[1751504680279,6.5438,152.75,152.73,6.58641221]
[1751504680482,6.5438,152.75,152.73,0.04181221]
[1751504681382,3.75816158,152.79,152.73,0.04181221]
[1751504681383,3.75816158,152.79,152.73,10.34457379]
[1751504682086,6.5435,152.76,152.73,10.34457379]
[1751504684280,6.5429,152.77,152.74,6.544]
[1751504685482,6.5426,152.78,152.75,6.5437]
[1751504685783,3.75816158,152.81,152.73,3.79997379]
[1751504686684,3.75816158,152.79,152.73,0.04181221]
[1751504687077,6.5439,152.75,152.73,0.04181221]
[1751504691285,6.5439,152.75,152.73,6.58641221]
[1751504691584,6.5439,152.75,152.73,0.04181221]
[1751504693689,6.5435,152.76,152.73,6.58631221]
[1751504694388,6.5429,152.77,152.74,3.75816158]
[1751504694891,6.5426,152.78,152.75,6.5438]
[1751504695391,8.13616158,152.82,152.77,6.5429]